fUSD/lending_fUSD_20260218
["ID","MTS","AMOUNT","RATE_DAILY","PERIOD"]
[405877140,1771379443941,-504.99811309,0.00013816,2]
[405877141,1771379443950,-2000.0,0.00013816,2]
[405877142,1771379443960,-2000.0,0.00013816,2]
[405877143,1771379443968,-2000.0,0.00013816,2]
[405877144,1771379443978,-200.0,0.00013836,2]
[405877145,1771379443988,-6122.39665962,0.00013862,2]
[405877146,1771379443998,-163.91978411,0.00013873,2]
[405877147,1771379444009,-500.0,0.00013873,2]
[405877148,1771379444020,-500.0,0.00013873,2]
[405877149,1771379444030,-500.0,0.00013873,2]
[405877150,1771379444039,-500.0,0.00013873,2]
[405877151,1771379444049,-500.0,0.00013873,2]
[405877152,1771379444060,-500.0,0.00013873,2]
[405877153,1771379444070,-500.0,0.00013873,2]
[405877154,1771379444080,-500.0,0.00013873,2]
[405877155,1771379444090,-500.0,0.00013873,2]
[405877156,1771379444100,-500.0,0.00013873,2]
[405877157,1771379444110,-500.0,0.00013873,2]
[405877158,1771379444120,-500.0,0.00013873,2]
[405877159,1771379444130,-500.0,0.00013873,2]
[405877160,1771379444140,-500.0,0.00013873,2]
[405877161,1771379444150,-500.0,0.00013873,2]
[405877162,1771379444160,-500.0,0.00013873,2]
[405877163,1771379444171,-500.0,0.00013873,2]
[405877164,1771379444181,-500.0,0.00013873,2]
[405877165,1771379444191,-500.0,0.00013873,2]
[405877166,1771379444203,-501.41908298,0.00013873,2]
[405877167,1771379444213,-500.0,0.00013873,2]
[405877168,1771379444223,-500.0,0.00013873,2]
[405877169,1771379444232,-500.0,0.00013873,2]
[405877170,1771379444242,-500.0,0.00013873,2]
[405877171,1771379444252,-162.44090576,0.00013873,2]
[405877172,1771379444263,-500.0,0.00013873,2]
[405877173,1771379444274,-500.0,0.00013873,2]
[405877174,1771379444285,-161.91543502,0.00013873,2]
[405877175,1771379444296,-505.80737732,0.00013873,2]
[405877176,1771379444306,-500.0,0.00013873,2]
[405877177,1771379444317,-501.28055995,0.00013873,2]
[405877178,1771379444327,-501.27513346,0.00013873,2]
[405877179,1771379444338,-161.06774125,0.00013873,2]
[405877180,1771379444349,-500.0,0.00013873,2]
[405877181,1771379444360,-160.59858326,0.00013873,2]
[405877182,1771379444371,-19000.0,0.000139,5]
[405877183,1771379444382,-8800.0,0.000139,5]
[405877184,1771379444392,-281.63,0.0001396,2]
[405877185,1771379444402,-12649.0,0.00014128,2]
[405877186,1771379444415,-4863.0,0.00014133,2]
[405877187,1771379444424,-1000.0,0.00014247,2]
[405877188,1771379444434,-1000.0,0.00014247,2]
[405877189,1771379444446,-1000.0,0.00014247,2]
[405877190,1771379444456,-1000.0,0.00014247,2]
[405877191,1771379444465,-1000.0,0.00014247,2]
[405877192,1771379444474,-1003.95489002,0.00014247,2]
[405877193,1771379444483,-591.59648837,0.00014247,2]
[405877194,1771379444493,-1000.0,0.00014247,2]
[405877195,1771379444503,-561.93408671,0.00014247,2]
[405877196,1771379444513,-552.89419638,0.00014247,2]
[405877197,1771379444523,-510.83232482,0.00014247,2]
[405877198,1771379444533,-274.55,0.00014326,2]
[405877199,1771379444546,-2500.0,0.00014364,2]
[405877200,1771379444555,-2500.0,0.00014364,2]
[405877201,1771379444567,-2500.0,0.00014364,2]
[405877202,1771379444578,-4655.54,0.00014384,2]
[405877203,1771379444588,-200.0,0.00014384,2]
[405877204,1771379444598,-1000.0,0.00014421,2]
[405877205,1771379444607,-1000.0,0.00014421,2]
[405877206,1771379444618,-336.6867508,0.00014421,2]
[405877207,1771379444628,-1000.0,0.00014421,2]
[405877208,1771379444639,-501.83349553,0.00014421,2]
[405877209,1771379444649,-1000.0,0.00014421,2]
[405877210,1771379444660,-1000.0,0.00014421,2]
[405877211,1771379444670,-1003.02217796,0.00014421,2]
[405877212,1771379444680,-1000.0,0.00014421,2]
[405877213,1771379444690,-1000.0,0.00014421,2]
[405877214,1771379444700,-1000.0,0.00014421,2]
[405877215,1771379444711,-1000.0,0.00014421,2]
[405877216,1771379444721,-1000.0,0.00014421,2]
[405877217,1771379444731,-1000.0,0.00014421,2]
[405877218,1771379444741,-1000.0,0.00014421,2]
[405877219,1771379444751,-1000.0,0.00014421,2]
[405877220,1771379444762,-1000.0,0.00014421,2]
[405877221,1771379444773,-1000.0,0.00014421,2]
[405877222,1771379444784,-1000.0,0.00014421,2]
[405877223,1771379444795,-1000.0,0.00014421,2]
[405877224,1771379444805,-1000.0,0.00014421,2]
[405877225,1771379444815,-527.03767121,0.00014421,2]
[405877226,1771379444826,-1000.0,0.00014421,2]
[405877227,1771379444838,-1000.0,0.00014421,2]
[405877228,1771379444848,-1000.0,0.00014421,2]
[405877229,1771379444858,-1000.0,0.00014421,2]
[405877230,1771379444868,-1000.0,0.00014421,2]
[405877231,1771379444880,-1163.46681332,0.00014517,2]
[405877232,1771379444891,-1121.73588013,0.00014654,2]
[405877233,1771379444901,-1013.62,0.00014734,2]
[405877234,1771379444911,-55849.4921239,0.00014759,2]
[405877235,1771379444921,-51247.22616044,0.00014759,2]
[405877236,1771379444931,-500.0,0.00014764,2]
[405877237,1771379444941,-1500.0,0.00014795,2]
[405877238,1771379444953,-248.69618497,0.00014795,2]
[405877239,1771379444966,-1598.38505595,0.00014795,2]
[405877240,1771379444977,-1500.0,0.00014795,2]
[405877241,1771379444989,-1500.0,0.00014795,2]
[405877242,1771379445000,-400.78287561,0.00014795,2]
[405877243,1771379445011,-152.5095618,0.00014853,2]
[405877244,1771379445022,-176.09216216,0.000149,2]
[405877245,1771379445033,-176.09216214,0.000149,2]
[405877246,1771379445044,-176.09216214,0.000149,2]
[405877247,1771379445056,-3000.0,0.00014912,2]
[405877248,1771379445068,-1365.39566179,0.00014912,2]
[405877249,1771379445079,-778.95197647,0.00014912,2]
[405877250,1771379445091,-200.0,0.00014932,2]
[405877251,1771379445103,-1006.83463437,0.00014968,2]
[405877252,1771379445114,-1500.0,0.00014968,2]
[405877253,1771379445126,-320.41394167,0.00014968,2]
[405877254,1771379445138,-502.60802488,0.00014968,2]
[405877255,1771379445150,-1500.0,0.00014968,2]
[405877256,1771379445160,-511.18674343,0.00014968,2]
[405877257,1771379445170,-504.94826631,0.00014968,2]
[405877258,1771379445181,-1500.0,0.00014968,2]
[405877259,1771379445193,-505.1226824,0.00014968,2]
[405877260,1771379445205,-1004.00693754,0.00014968,2]
[405877261,1771379445217,-510.8519794,0.00014968,2]
[405877262,1771379445229,-1601.60829552,0.00014968,2]
[405877263,1771379445242,-1500.0,0.00014968,2]
[405877264,1771379445254,-1500.0,0.00014968,2]
[405877265,1771379445267,-1495.09309857,0.00014968,2]
[405877266,1771379445280,-153.90762454,0.00014968,2]
[405877267,1771379445292,-1009.93958191,0.00014968,2]
[405877268,1771379445303,-1500.0,0.00014968,2]
[405877269,1771379445316,-897.67367643,0.00014968,2]
[405877270,1771379445329,-1500.0,0.00014968,2]
[405877271,1771379445341,-1500.0,0.00014968,2]
[405877272,1771379445353,-1500.0,0.00014968,2]
[405877273,1771379445365,-1513.44511297,0.00014968,2]
[405877274,1771379445376,-500.0,0.00015038,2]
[405877275,1771379445387,-600.0,0.00015048,2]
[405877276,1771379445399,-4655.54,0.00015068,2]
[405877277,1771379445411,-6122.39665962,0.00015208,2]
[405877278,1771379445422,-619.60418708,0.00015312,2]
[405877279,1771379445433,-504.01966678,0.00015342,2]
[405877280,1771379445444,-2000.0,0.00015342,2]
[405877281,1771379445457,-1721.59968024,0.00015342,2]
[405877282,1771379445469,-3500.0,0.0001546,2]
[405877283,1771379445483,-1620.78233815,0.00015516,2]
[405877284,1771379445494,-1000.0,0.00015516,2]
[405877285,1771379445505,-1149.30748282,0.00015516,2]
[405877286,1771379445516,-2000.0,0.00015516,2]
[405877287,1771379445531,-495.48711231,0.00015516,2]
[405877288,1771379445546,-2000.0,0.00015516,2]
[405877289,1771379445557,-2000.0,0.00015516,2]
[405877290,1771379445570,-2000.0,0.00015516,2]
[405877291,1771379445582,-887.35182664,0.00015516,2]
[405877292,1771379445597,-9766.0,0.00015541,2]
[405877293,1771379445608,-1121.73588013,0.00015736,2]
[405877294,1771379445621,-281.63,0.00015747,2]
[405877295,1771379445632,-4655.54,0.00015753,2]
[405877296,1771379445645,-55849.4921239,0.00015806,2]
[405877297,1771379445655,-51247.22616044,0.00015806,2]
[405877298,1771379445666,-2012.76623204,0.0001589,2]
[405877299,1771379445678,-5000.0,0.0001596,2]
[405877300,1771379445688,-274.55,0.00015985,2]
[405877301,1771379445700,-173.57638878,0.00016,3]
[405877302,1771379445710,-277.203629,0.00016,2]
[405877303,1771379445723,-1508.25195844,0.00016008,2]
[405877304,1771379445734,-2500.0,0.00016064,2]
[405877305,1771379445747,-1511.11663832,0.00016064,2]
[405877306,1771379445758,-2293.67865987,0.00016064,2]
[405877307,1771379445770,-1967.22886031,0.00016064,2]
[405877308,1771379445780,-1800.0,0.00016082,2]
[405877309,1771379445790,-9999.99,0.00016116,2]
[405877310,1771379445800,-420.018408,0.00016157,7]
[405877311,1771379445809,-150.0,0.000162,2]
[405877312,1771379445820,-500.0,0.00016356,2]
[405877313,1771379445829,-500.0,0.00016356,2]
[405877314,1771379446065,-2329.7,0.00016438,2]
[405877315,1771379446076,-890.56,0.00016438,2]
[405877316,1771379446086,-841.0,0.00016438,2]
[405877317,1771379446098,-150.0,0.00016438,2]
[405877318,1771379446110,-4655.54,0.00016438,2]
[405877319,1771379446123,-6122.39665962,0.00016554,2]
[405877320,1771379446135,-150.0,0.0001656,2]
[405877321,1771379446146,-1535.74923491,0.00016612,2]
[405877322,1771379446156,-2329.7,0.00016712,2]
[405877323,1771379446166,-1000.0,0.00016712,2]
[405877324,1771379446176,-841.0,0.00016712,2]
[405877325,1771379446187,-1000.0,0.00016718,2]
[405877326,1771379446198,-1013.62,0.00016719,2]
[405877327,1771379446211,-2836.0,0.0001672,2]
[405877328,1771379446221,-970.56927813,0.00016753,2]
[405877329,1771379446233,-13695.31439948,0.00016753,2]
[405877330,1771379446243,-1000.0,0.00016789,2]
[405877331,1771379446253,-328.02641425,0.000168,2]
[405877332,1771379446263,-2000.0,0.000168,2]
[405877333,1771379446274,-1121.73588013,0.00016818,2]
[405877334,1771379446285,-1000.0,0.00016836,2]
[405877335,1771379446295,-1000.0,0.00016843,2]
[405877336,1771379446306,-1000.0,0.00016845,2]
[405877337,1771379446316,-55849.4921239,0.00016853,2]
[405877339,1771379446327,-51247.22616044,0.00016853,2]
[405877340,1771379446337,-175.2871213,0.00016858,4]
[405877341,1771379446346,-1000.0,0.00016896,2]
[405877342,1771379446356,-25400.0,0.000169,6]
[405877343,1771379446366,-11700.0,0.000169,6]
[405877344,1771379446378,-150.0,0.0001692,2]
[405877345,1771379446388,-1000.0,0.00016932,2]
[405877346,1771379446404,-1000.0,0.00016951,2]
[405877347,1771379446417,-1000.0,0.00016956,2]
[405877348,1771379446428,-1000.0,0.00016956,2]
[405877349,1771379446438,-2329.7,0.00016986,2]
[405877350,1771379446447,-841.0,0.00016986,2]
[405877351,1771379446458,-201.63543106,0.00016986,2]
[405877352,1771379446468,-1000.0,0.00016996,2]
[405877353,1771379446477,-351.95234324,0.00017,5]
[405877354,1771379446487,-1000.0,0.00017001,2]
[405877355,1771379446497,-500.0,0.0001702,2]
[405877356,1771379446507,-500.0,0.0001702,2]
[405877357,1771379446518,-500.0,0.0001702,2]
[405877358,1771379446530,-500.0,0.0001702,2]
[405877359,1771379446548,-174.61919141,0.0001702,2]
[405877360,1771379446559,-500.0,0.0001702,2]
[405877361,1771379446570,-500.0,0.0001702,2]
[405877362,1771379446582,-500.0,0.0001702,2]
[405877363,1771379446592,-743.50770149,0.0001702,2]
[405877364,1771379446603,-500.0,0.0001702,2]
[405877365,1771379446616,-500.0,0.0001702,2]
[405877366,1771379446628,-869.90283563,0.0001702,2]
[405877367,1771379446640,-500.0,0.0001702,2]
[405877368,1771379446651,-721.12765535,0.0001702,2]
[405877369,1771379446662,-500.0,0.0001702,2]
[405877370,1771379446673,-500.0,0.0001702,2]
[405877371,1771379446683,-186.31134209,0.0001702,2]
[405877372,1771379446694,-500.0,0.0001702,2]
[405877373,1771379446704,-500.0,0.0001702,2]
[405877374,1771379446714,-500.0,0.0001702,2]
[405877375,1771379446724,-500.0,0.0001702,2]
[405877376,1771379446734,-500.0,0.0001702,2]
[405877377,1771379446745,-500.0,0.0001702,2]
[405877378,1771379446755,-500.0,0.0001702,2]
[405877379,1771379446765,-500.0,0.0001702,2]
[405877380,1771379446775,-151.0,0.0001702,2]
[405877381,1771379446785,-179.16884885,0.0001702,2]
[405877382,1771379446795,-250.0,0.0001702,2]
[405877383,1771379446805,-250.0,0.0001702,2]
[405877384,1771379446815,-250.0,0.0001702,2]
[405877385,1771379446825,-3000.0,0.0001702,2]
[405877386,1771379446839,-3000.0,0.0001702,2]
[405877387,1771379446849,-250.0,0.0001702,2]
[405877388,1771379446859,-3000.0,0.0001702,2]
[405877389,1771379446870,-250.0,0.0001702,2]
[405877390,1771379446881,-3000.0,0.0001702,2]
[405877391,1771379446891,-250.0,0.0001702,2]
[405877392,1771379446901,-3000.0,0.0001702,2]
[405877393,1771379446912,-250.0,0.0001702,2]
[405877394,1771379446922,-3000.0,0.0001702,2]
[405877395,1771379446932,-250.0,0.0001702,2]
[405877396,1771379446943,-250.0,0.0001702,2]
[405877397,1771379446955,-3000.0,0.0001702,2]
[405877398,1771379446967,-250.0,0.0001702,2]
[405877399,1771379446977,-250.0,0.0001702,2]
[405877400,1771379446989,-2642.42848556,0.0001702,2]
[405877401,1771379447000,-250.0,0.0001702,2]
[405877402,1771379447012,-250.0,0.0001702,2]
[405877403,1771379447023,-250.0,0.0001702,2]
[405877404,1771379447036,-250.0,0.0001702,2]
[405877405,1771379447046,-250.0,0.0001702,2]
[405877406,1771379447057,-250.0,0.0001702,2]
[405877407,1771379447067,-250.0,0.0001702,2]
[405877408,1771379447079,-250.0,0.0001702,2]
[405877409,1771379447090,-250.0,0.0001702,2]
[405877410,1771379447103,-693.3919763,0.0001702,2]
[405877411,1771379447115,-250.0,0.0001702,2]
[405877412,1771379447126,-250.0,0.0001702,2]
[405877413,1771379447136,-250.0,0.0001702,2]
[405877414,1771379447146,-250.0,0.0001702,2]
[405877415,1771379447156,-250.0,0.0001702,2]
[405877416,1771379447166,-250.0,0.0001702,2]
[405877417,1771379447177,-250.0,0.0001702,2]
[405877418,1771379447187,-250.0,0.0001702,2]
[405877419,1771379447198,-151.0,0.0001702,2]
[405877420,1771379447208,-250.0,0.0001702,2]
[405877421,1771379447219,-303.47387582,0.0001702,2]
[405877422,1771379447230,-156.587,0.0001702,2]
[405877423,1771379447242,-250.0,0.0001702,2]
[405877424,1771379447254,-162.380719,0.0001702,2]
[405877425,1771379447265,-250.0,0.0001702,2]
[405877426,1771379447276,-159.34648945,0.0001702,2]
[405877427,1771379447288,-250.0,0.0001702,2]
[405877428,1771379447299,-250.0,0.0001702,2]
[405877429,1771379447311,-250.0,0.0001702,2]
[405877430,1771379447322,-250.0,0.0001702,2]
[405877431,1771379447334,-250.0,0.0001702,2]
[405877432,1771379447345,-250.0,0.0001702,2]
[405877433,1771379447355,-250.0,0.0001702,2]
[405877434,1771379447366,-250.0,0.0001702,2]
[405877435,1771379447376,-250.0,0.0001702,2]
[405877436,1771379447387,-277.35679052,0.0001702,2]
[405877437,1771379447398,-250.0,0.0001702,2]
[405877438,1771379447408,-250.0,0.0001702,2]
[405877439,1771379447419,-250.0,0.0001702,2]
[405877440,1771379447430,-437.97549792,0.0001702,2]
[405877441,1771379447440,-200.0,0.0001702,2]
[405877442,1771379447450,-250.0,0.0001702,2]
[405877443,1771379447460,-250.0,0.0001702,2]
[405877444,1771379447471,-250.0,0.0001702,2]
[405877445,1771379447482,-151.0,0.0001702,2]
[405877446,1771379447493,-250.0,0.0001702,2]
[405877447,1771379447505,-151.0,0.0001702,2]
[405877448,1771379447515,-250.0,0.0001702,2]
[405877449,1771379447525,-250.0,0.0001702,2]
[405877450,1771379447536,-151.0,0.0001702,2]
[405877451,1771379447550,-151.0,0.0001702,2]
[405877452,1771379447560,-250.0,0.0001702,2]
[405877453,1771379447570,-250.0,0.0001702,2]
[405877454,1771379447581,-151.0,0.0001702,2]
[405877455,1771379447591,-151.0,0.0001702,2]
[405877456,1771379447601,-250.0,0.0001702,2]
[405877457,1771379447610,-151.0,0.0001702,2]
[405877458,1771379447620,-250.0,0.0001702,2]
[405877459,1771379447630,-151.0,0.0001702,2]
[405877460,1771379447641,-250.0,0.0001702,2]
[405877461,1771379447652,-151.0,0.0001702,2]
[405877462,1771379447663,-151.0,0.0001702,2]
[405877463,1771379447673,-151.0,0.0001702,2]
[405877464,1771379447684,-1000.0,0.00017023,2]
[405877465,1771379447694,-1000.0,0.00017024,2]
[405877466,1771379447704,-151.0,0.00017075,2]
[405877467,1771379447715,-719.04747942,0.00017075,2]
[405877468,1771379447725,-1000.0,0.00017093,2]
[405877469,1771379447736,-15310.08546609,0.000171,2]
[405877470,1771379447746,-5673.968116,0.000171,2]
[405877471,1771379447759,-820.0,0.000171,2]
[405877472,1771379447770,-151.0,0.0001713,2]
[405877473,1771379447782,-745.65223616,0.0001713,2]
[405877474,1771379447793,-1000.0,0.00017136,2]
[405877475,1771379447806,-380.47,0.00017158,2]
[405877476,1771379447817,-151.0,0.00017185,2]
[405877477,1771379447828,-773.2413689,0.00017185,2]
[405877478,1771379447839,-2000.0,0.000172,2]
[405877479,1771379447855,-350.0,0.00017207,2]
[405877480,1771379447865,-380.47,0.00017222,2]
[405877481,1771379447875,-151.0,0.0001724,2]
[405877482,1771379447887,-801.85129955,0.0001724,2]
[405877483,1771379447897,-1000.0,0.00017241,2]
[405877484,1771379447908,-2329.7,0.0001726,2]
[405877485,1771379447918,-841.0,0.0001726,2]
[405877486,1771379447929,-1000.0,0.0001726,2]
[405877487,1771379447939,-1000.0,0.00017275,2]
[405877488,1771379447949,-150.0,0.0001728,2]
[405877489,1771379447959,-380.47,0.00017287,2]
[405877490,1771379447970,-1000.0,0.00017291,2]
[405877491,1771379447981,-1030.30455867,0.00017292,2]
[405877492,1771379447992,-151.0,0.00017295,2]
[405877493,1771379448003,-831.51979763,0.00017295,2]
[405877494,1771379448013,-1000.0,0.00017301,2]
[405877495,1771379448024,-1000.0,0.00017308,2]
[405877496,1771379448035,-1000.0,0.00017309,2]
[405877497,1771379448047,-500.0,0.00017315,2]
[405877498,1771379448058,-500.0,0.00017315,2]
[405877499,1771379448069,-500.0,0.00017315,2]
[405877500,1771379448080,-590.0,0.00017315,2]
[405877501,1771379448090,-150.0,0.00017315,2]
[405877502,1771379448099,-500.0,0.00017315,2]
[405877503,1771379448109,-500.0,0.00017315,2]
[405877504,1771379448120,-500.0,0.00017315,2]
[405877505,1771379448130,-150.0,0.00017315,2]
[405877506,1771379448140,-500.0,0.00017315,2]
[405877507,1771379448151,-1239.0,0.00017315,2]
[405877508,1771379448161,-151.49356068,0.00017315,2]
[405877509,1771379448171,-500.0,0.00017315,2]
[405877510,1771379448182,-500.0,0.00017315,2]
[405877511,1771379448192,-150.0,0.00017315,2]
[405877512,1771379448207,-150.0,0.00017315,2]
[405877513,1771379448217,-150.0,0.00017315,2]
[405877514,1771379448228,-150.0,0.00017315,2]
[405877515,1771379448238,-2476.0,0.00017315,2]
[405877516,1771379448250,-150.0,0.00017315,2]
[405877517,1771379448263,-237.41137779,0.00017315,2]
[405877518,1771379448273,-500.0,0.00017315,2]
[405877519,1771379448285,-500.0,0.00017315,2]
[405877520,1771379448295,-500.0,0.00017315,2]
[405877521,1771379448305,-150.0,0.00017315,2]
[405877522,1771379448316,-150.0,0.00017315,2]
[405877523,1771379448327,-214.04065254,0.00017315,2]
[405877524,1771379448337,-162.0,0.00017316,2]
[405877525,1771379448348,-970.56927811,0.00017327,2]
[405877526,1771379448359,-151.0,0.0001735,2]
[405877527,1771379448370,-862.28603014,0.0001735,2]
[405877528,1771379448381,-1000.0,0.00017352,2]
[405877529,1771379448392,-2836.0,0.0001736,2]
[405877530,1771379448403,-150.0,0.0001736,2]
[405877531,1771379448414,-500.0,0.0001737,2]
[405877532,1771379448424,-500.0,0.0001737,2]
[405877533,1771379448436,-500.0,0.0001737,2]
[405877534,1771379448448,-590.0,0.0001737,2]
[405877535,1771379448459,-150.0,0.0001737,2]
[405877536,1771379448469,-500.0,0.0001737,2]
[405877537,1771379448480,-500.0,0.0001737,2]
[405877538,1771379448491,-500.0,0.0001737,2]
[405877539,1771379448503,-150.0,0.0001737,2]
[405877540,1771379448514,-500.0,0.0001737,2]
[405877541,1771379448525,-1239.0,0.0001737,2]
[405877542,1771379448537,-500.0,0.0001737,2]
[405877543,1771379448551,-500.0,0.0001737,2]
[405877544,1771379448562,-152.43355065,0.0001737,2]
[405877545,1771379448574,-150.0,0.0001737,2]
[405877546,1771379448586,-150.0,0.0001737,2]
[405877547,1771379448599,-150.0,0.0001737,2]
[405877548,1771379448611,-2476.0,0.0001737,2]
[405877549,1771379448622,-150.0,0.0001737,2]
[405877550,1771379448632,-500.0,0.0001737,2]
[405877551,1771379448644,-500.0,0.0001737,2]
[405877552,1771379448655,-500.0,0.0001737,2]
[405877553,1771379448665,-150.18115888,0.0001737,2]
[405877554,1771379448676,-996.49958588,0.00017388,2]
[405877555,1771379448687,-1000.0,0.00017398,2]
[405877556,1771379448698,-31700.0,0.000174,6]
[405877557,1771379448709,-14600.0,0.000174,6]
[405877558,1771379448722,-167.73514655,0.00017401,2]
[405877559,1771379448733,-151.0,0.00017405,2]
[405877560,1771379448745,-894.19061326,0.00017405,2]
[405877561,1771379448758,-150.0,0.00017412,2]
[405877562,1771379448769,-500.0,0.00017425,2]
[405877563,1771379448780,-500.0,0.00017425,2]
[405877564,1771379448790,-500.0,0.00017425,2]
[405877565,1771379448801,-590.0,0.00017425,2]
[405877566,1771379448812,-201.55236857,0.00017425,2]
[405877567,1771379448823,-500.0,0.00017425,2]
[405877568,1771379448838,-500.0,0.00017425,2]
[405877569,1771379448848,-500.0,0.00017425,2]
[405877570,1771379448860,-200.0,0.00017425,2]
[405877571,1771379448871,-500.0,0.00017425,2]
[405877572,1771379448881,-1239.0,0.00017425,2]
[405877573,1771379448892,-500.0,0.00017425,2]
[405877574,1771379448903,-500.0,0.00017425,2]
[405877575,1771379448914,-204.06889141,0.00017425,2]
[405877576,1771379448924,-150.0,0.00017425,2]
[405877577,1771379448936,-150.0,0.00017425,2]
[405877578,1771379448947,-2476.0,0.00017425,2]
[405877579,1771379448958,-150.0,0.00017425,2]
[405877580,1771379448969,-500.0,0.00017425,2]
[405877581,1771379448981,-500.0,0.00017425,2]
[405877582,1771379448992,-500.0,0.00017425,2]
[405877583,1771379449003,-1000.0,0.00017425,2]
[405877584,1771379449013,-150.0,0.00017437,2]
[405877585,1771379449024,-1800.0,0.00017452,7]
[405877586,1771379449036,-151.0,0.0001746,2]
[405877587,1771379449047,-927.27566595,0.0001746,2]
[405877588,1771379449058,-1000.0,0.00017478,2]
[405877589,1771379449069,-500.0,0.00017479,2]
[405877590,1771379449080,-500.0,0.00017479,2]
[405877591,1771379449091,-500.0,0.00017479,2]
[405877592,1771379449103,-590.0,0.00017479,2]
[405877593,1771379449113,-500.0,0.00017479,2]
[405877594,1771379449125,-500.0,0.00017479,2]
[405877595,1771379449136,-500.0,0.00017479,2]
[405877596,1771379449147,-500.0,0.00017479,2]
[405877597,1771379449158,-1239.0,0.00017479,2]
[405877598,1771379449168,-500.0,0.00017479,2]
[405877599,1771379449179,-500.0,0.00017479,2]
[405877600,1771379449191,-150.0,0.00017479,2]
[405877601,1771379449203,-150.0,0.00017479,2]
[405877602,1771379449215,-2476.0,0.00017479,2]
[405877603,1771379449226,-202.09335271,0.00017479,2]
[405877604,1771379449237,-500.0,0.00017479,2]
[405877605,1771379449248,-512.81532105,0.00017479,2]
[405877606,1771379449258,-500.0,0.00017479,2]
[405877607,1771379449271,-1000.0,0.0001748,2]
[405877608,1771379449285,-741.75289305,0.00017496,2]
[405877609,1771379449296,-213.48493824,0.00017496,2]
[405877610,1771379449308,-1000.0,0.00017497,2]
[405877611,1771379449318,-6300.0,0.000175,6]
[405877612,1771379449329,-2900.0,0.000175,6]
[405877613,1771379449340,-150.0,0.00017506,2]
[405877614,1771379449350,-151.0,0.00017515,2]
[405877615,1771379449360,-961.58486559,0.00017515,2]
[405877616,1771379449372,-1000.0,0.00017525,2]
[405877617,1771379449383,-1000.0,0.00017529,2]
[405877618,1771379449394,-2329.7,0.00017534,2]
[405877619,1771379449404,-500.0,0.00017534,2]
[405877620,1771379449414,-500.0,0.00017534,2]
[405877621,1771379449426,-500.0,0.00017534,2]
[405877622,1771379449439,-590.0,0.00017534,2]
[405877623,1771379449451,-500.0,0.00017534,2]
[405877624,1771379449463,-154.93597939,0.00017534,2]
[405877625,1771379449475,-500.0,0.00017534,2]
[405877626,1771379449485,-500.0,0.00017534,2]
[405877627,1771379449496,-1239.0,0.00017534,2]
[405877628,1771379449509,-331.0837759,0.00017534,2]
[405877629,1771379449519,-500.0,0.00017534,2]
[405877630,1771379449533,-150.0,0.00017534,2]
[405877631,1771379449544,-222.06627724,0.00017534,2]
[405877632,1771379449556,-2476.0,0.00017534,2]
[405877633,1771379449566,-500.0,0.00017534,2]
[405877634,1771379449581,-500.0,0.00017534,2]
[405877635,1771379449593,-841.0,0.00017534,2]
[405877636,1771379449606,-1000.0,0.00017534,2]
[405877637,1771379449618,-150.0,0.00017549,2]
[405877638,1771379449630,-181.08010149,0.00017568,2]
[405877639,1771379449642,-771.01748645,0.00017568,2]
[405877640,1771379449900,-287.61899177,0.00017568,2]